fUSD/lending_fUSD_20240326
["ID","MTS","AMOUNT","RATE_DAILY","PERIOD"]
[320689563,1711497072014,-152.63,0.000579,9]
[320689564,1711497072023,-152.63,0.000579,9]
[320689565,1711497072033,-3042.38143065,0.00058,30]
[320689566,1711497072047,-7681.9787125,0.00058,30]
[320689567,1711497072059,-15178.26044037,0.00058,30]
[320689568,1711497072068,-159.0,0.00058,100]
[320689569,1711497072077,-1002.8104923,0.0005801,14]
[320689570,1711497072087,-999.6,0.00058015,2]
[320689571,1711497072097,-160.55629022,0.0005806,120]
[320689572,1711497072109,-158.40053583,0.00058064,120]
[320689573,1711497072119,-500.0,0.00058081,120]
[320689574,1711497072129,-500.0,0.00058081,120]
[320689575,1711497072139,-500.0,0.00058081,120]
[320689576,1711497072148,-500.0,0.00058081,120]
[320689577,1711497072159,-500.0,0.00058081,120]
[320689578,1711497072169,-500.0,0.00058081,120]
[320689579,1711497072178,-500.0,0.00058081,120]
[320689580,1711497072188,-500.0,0.00058081,120]
[320689581,1711497072198,-593.16,0.00058081,120]
[320689582,1711497072209,-569.21,0.00058081,120]
[320689583,1711497072218,-500.0,0.00058081,120]
[320689584,1711497072230,-1250.0,0.00058081,64]
[320689585,1711497072240,-854.68,0.00058081,120]
[320689586,1711497072250,-500.0,0.00058081,120]
[320689587,1711497072261,-500.0,0.00058081,120]
[320689588,1711497072271,-1378.8,0.00058081,120]
[320689589,1711497072281,-797.06,0.00058081,120]
[320689590,1711497072291,-794.07,0.00058081,120]
[320689591,1711497072301,-628.57,0.00058081,120]
[320689592,1711497072311,-279.41383562,0.00058081,120]
[320689593,1711497072324,-1209.74189245,0.00058081,120]
[320689594,1711497072336,-567.87071449,0.00058081,120]
[320689595,1711497072348,-1120.65355744,0.00058081,120]
[320689596,1711497072357,-500.0,0.00058081,120]
[320689597,1711497072367,-387.76126998,0.00058081,120]
[320689598,1711497072395,-520.04873002,0.00058081,120]
[320689599,1711497072406,-500.0,0.00058081,120]
[320689600,1711497072416,-2976.7,0.00058081,120]
[320689601,1711497072426,-580.67,0.00058081,120]
[320689602,1711497072436,-500.0,0.00058081,120]
[320689603,1711497072445,-500.0,0.00058081,120]
[320689604,1711497072456,-500.0,0.00058082,120]
[320689605,1711497072466,-628.29,0.00058082,120]
[320689606,1711497072477,-150.8995867,0.00058082,120]
[320689607,1711497072487,-500.0,0.00058082,120]
[320689608,1711497072497,-500.0,0.00058082,120]
[320689609,1711497072507,-500.0,0.00058082,120]
[320689610,1711497072518,-500.0,0.00058082,120]
[320689611,1711497072528,-634.83,0.00058082,120]
[320689612,1711497072538,-500.0,0.00058082,120]
[320689613,1711497072548,-500.0,0.00058082,120]
[320689614,1711497072559,-500.0,0.00058082,120]
[320689615,1711497072568,-500.0,0.00058082,120]
[320689616,1711497072578,-219.83,0.00058082,120]
[320689617,1711497072588,-482.52301989,0.00058082,120]
[320689618,1711497072598,-500.0,0.00058082,120]
[320689619,1711497072608,-500.0,0.00058082,120]
[320689620,1711497072617,-500.0,0.00058082,120]
[320689621,1711497072627,-500.0,0.00058082,120]
[320689622,1711497072636,-239.10690254,0.00058082,120]
[320689623,1711497072646,-150.0,0.00058082,120]
[320689624,1711497072658,-616.93,0.00058082,120]
[320689625,1711497072669,-500.0,0.00058082,120]
[320689626,1711497072678,-500.0,0.00058082,120]
[320689627,1711497072687,-500.0,0.00058082,120]
[320689628,1711497072697,-420.7,0.00058082,120]
[320689629,1711497072706,-500.0,0.00058082,120]
[320689630,1711497072719,-500.0,0.00058082,120]
[320689631,1711497072731,-500.0,0.00058082,120]
[320689632,1711497072741,-500.0,0.00058082,120]
[320689633,1711497072750,-500.0,0.00058082,120]
[320689634,1711497072761,-1692.02,0.00058082,120]
[320689635,1711497072771,-500.0,0.00058082,120]
[320689636,1711497072781,-500.0,0.00058082,120]
[320689637,1711497072792,-500.0,0.00058082,120]
[320689638,1711497072979,-500.0,0.00058082,120]
[320689639,1711497072989,-500.0,0.00058082,120]
[320689640,1711497072998,-500.0,0.00058082,120]
[320689641,1711497073008,-500.0,0.00058082,120]
[320689642,1711497073018,-500.0,0.00058082,120]
[320689643,1711497073028,-500.0,0.00058082,120]
[320689644,1711497073037,-1095.23,0.00058082,120]
[320689645,1711497073046,-571.77,0.00058082,120]
[320689646,1711497073056,-500.0,0.00058082,120]
[320689647,1711497073065,-500.0,0.00058082,120]
[320689648,1711497073075,-153.71,0.00058082,120]
[320689649,1711497073084,-500.0,0.00058082,120]
[320689650,1711497073093,-500.0,0.00058082,120]
[320689651,1711497073102,-500.0,0.00058082,120]
[320689652,1711497073111,-500.0,0.00058082,120]
[320689653,1711497073120,-500.0,0.00058082,120]
[320689654,1711497073130,-500.0,0.00058082,120]
[320689655,1711497073139,-500.0,0.00058082,120]
[320689656,1711497073148,-500.0,0.00058082,120]
[320689657,1711497073157,-500.0,0.00058082,120]
[320689658,1711497073167,-338.17,0.00058082,120]
[320689659,1711497073177,-196.16,0.00058082,120]
[320689660,1711497073186,-500.0,0.00058082,120]
[320689661,1711497073196,-500.0,0.00058082,120]
[320689662,1711497073205,-3526.36,0.00058082,120]
[320689663,1711497073214,-160.64,0.00058082,120]
[320689664,1711497073225,-768.12,0.00058082,120]
[320689665,1711497073235,-500.0,0.00058082,120]
[320689666,1711497073244,-411.87936349,0.00058082,120]
[320689667,1711497073253,-473.57,0.00058082,120]
[320689668,1711497073263,-500.0,0.00058082,120]
[320689669,1711497073273,-500.0,0.00058082,120]
[320689670,1711497073282,-1271.73,0.00058082,120]
[320689671,1711497073292,-257.93,0.00058082,120]
[320689672,1711497073302,-500.0,0.00058082,120]
[320689673,1711497073311,-583.68298436,0.00058082,120]
[320689674,1711497073321,-648.81,0.00058082,120]
[320689675,1711497073331,-500.0,0.00058082,120]
[320689676,1711497073340,-500.0,0.00058082,120]
[320689677,1711497073350,-500.0,0.00058082,120]
[320689678,1711497073360,-500.0,0.00058082,21]
[320689679,1711497073369,-500.0,0.00058082,120]
[320689680,1711497073379,-500.0,0.00058082,120]
[320689681,1711497073389,-500.0,0.00058082,120]
[320689682,1711497073399,-500.0,0.00058082,120]
[320689683,1711497073409,-500.0,0.00058082,120]
[320689684,1711497073419,-500.0,0.00058082,120]
[320689685,1711497073429,-899.99,0.00058082,120]
[320689686,1711497073439,-500.0,0.00058082,120]
[320689687,1711497073449,-500.0,0.00058082,120]
[320689688,1711497073459,-500.0,0.00058082,120]
[320689689,1711497073469,-500.0,0.00058082,120]
[320689690,1711497073480,-500.0,0.00058082,120]
[320689691,1711497073490,-957.61,0.00058082,120]
[320689692,1711497073501,-500.0,0.00058082,120]
[320689693,1711497073512,-672.52,0.00058082,120]
[320689694,1711497073522,-1294.72,0.00058082,120]
[320689695,1711497073532,-202.50767694,0.000581,30]
[320689696,1711497073542,-1000.0,0.00058103,120]
[320689697,1711497073552,-500.0,0.00058134,120]
[320689698,1711497073562,-1127.02834246,0.00058179,120]
[320689699,1711497073571,-151.032707,0.00058198,105]
[320689700,1711497073581,-9070.25883892,0.00058213,37]
[320689701,1711497073589,-666.0,0.00058219,120]
[320689702,1711497073599,-237.05,0.00058231,2]
[320689703,1711497073608,-785.64384154,0.00058335,7]
[320689704,1711497073617,-500.0,0.00058355,60]
[320689705,1711497073627,-529.7,0.00058356,120]
[320689706,1711497073636,-2999.99999901,0.000584,120]
[320689707,1711497073645,-500.0,0.00058407,120]
[320689708,1711497073655,-819.2937706,0.00058407,2]
[320689709,1711497073664,-3228.61872691,0.00058407,2]
[320689710,1711497073673,-151.032707,0.00058448,115]
[320689711,1711497073683,-500.0,0.00058492,120]
[320689712,1711497073693,-500.0,0.00058492,120]
[320689713,1711497073703,-500.0,0.00058492,120]
[320689714,1711497073714,-500.0,0.00058492,120]
[320689715,1711497073724,-500.0,0.00058492,120]
[320689716,1711497073735,-500.0,0.00058492,120]
[320689717,1711497073744,-500.0,0.00058492,120]
[320689718,1711497073754,-500.0,0.00058492,120]
[320689719,1711497073764,-593.16,0.00058492,120]
[320689720,1711497073773,-569.21,0.00058492,120]
[320689721,1711497073782,-500.0,0.00058492,120]
[320689722,1711497073794,-854.68,0.00058492,120]
[320689723,1711497073803,-500.0,0.00058492,120]
[320689724,1711497073812,-500.0,0.00058492,120]
[320689725,1711497073822,-1378.8,0.00058492,120]
[320689726,1711497073831,-797.06,0.00058492,120]
[320689727,1711497073842,-794.07,0.00058492,120]
[320689728,1711497073851,-628.57,0.00058492,120]
[320689729,1711497073861,-3177.68,0.00058492,120]
[320689730,1711497073871,-500.0,0.00058492,120]
[320689731,1711497073880,-907.81,0.00058492,120]
[320689732,1711497073890,-500.0,0.00058492,120]
[320689733,1711497073898,-2976.7,0.00058492,120]
[320689734,1711497073908,-580.67,0.00058492,120]
[320689735,1711497073917,-500.0,0.00058492,120]
[320689736,1711497073926,-500.0,0.00058492,120]
[320689737,1711497073936,-500.0,0.00058493,120]
[320689738,1711497073945,-500.0,0.00058493,120]
[320689739,1711497073954,-596.12,0.00058493,120]
[320689740,1711497073963,-598.1,0.00058493,120]
[320689741,1711497073973,-500.0,0.00058493,120]
[320689742,1711497073984,-500.0,0.00058493,120]
[320689743,1711497073994,-173.11,0.00058493,120]
[320689744,1711497074003,-500.0,0.00058493,120]
[320689745,1711497074013,-500.0,0.00058493,120]
[320689746,1711497074022,-500.0,0.00058493,120]
[320689747,1711497074032,-500.0,0.00058493,120]
[320689748,1711497074043,-618.78877948,0.00058493,120]
[320689749,1711497074052,-500.0,0.00058493,120]
[320689750,1711497074061,-150.0,0.00058493,120]
[320689751,1711497074071,-500.0,0.00058493,120]
[320689752,1711497074080,-500.0,0.00058493,120]
[320689753,1711497074089,-500.0,0.00058493,120]
[320689754,1711497074099,-500.0,0.00058493,120]
[320689755,1711497074108,-500.0,0.00058493,120]
[320689756,1711497074117,-500.0,0.00058493,120]
[320689757,1711497074127,-500.0,0.00058493,120]
[320689758,1711497074136,-500.0,0.00058493,120]
[320689759,1711497074145,-1692.02,0.00058493,120]
[320689760,1711497074155,-459.35,0.00058493,120]
[320689761,1711497074164,-500.0,0.00058493,120]
[320689762,1711497074173,-500.0,0.00058493,120]
[320689763,1711497074182,-500.0,0.00058493,120]
[320689764,1711497074191,-500.0,0.00058493,120]
[320689765,1711497074200,-500.0,0.00058493,120]
[320689766,1711497074210,-500.0,0.00058493,120]
[320689767,1711497074219,-500.0,0.00058493,120]
[320689768,1711497074233,-500.0,0.00058493,120]
[320689769,1711497074244,-1095.23,0.00058493,120]
[320689770,1711497074253,-500.0,0.00058493,120]
[320689771,1711497074263,-500.0,0.00058493,120]
[320689772,1711497074273,-500.0,0.00058493,120]
[320689773,1711497074283,-207.66180748,0.00058493,120]
[320689774,1711497074293,-500.0,0.00058493,120]
[320689775,1711497074302,-500.0,0.00058493,120]
[320689776,1711497074312,-500.0,0.00058493,120]
[320689777,1711497074321,-500.0,0.00058493,120]
[320689778,1711497074332,-500.0,0.00058493,120]
[320689779,1711497074341,-500.0,0.00058493,120]
[320689780,1711497074351,-500.0,0.00058493,120]
[320689781,1711497074360,-500.0,0.00058493,120]
[320689782,1711497074370,-500.0,0.00058493,120]
[320689783,1711497074380,-3526.36,0.00058493,120]
[320689784,1711497074390,-500.0,0.00058493,120]
[320689785,1711497074400,-768.12,0.00058493,120]
[320689786,1711497074410,-500.0,0.00058493,120]
[320689787,1711497074419,-500.0,0.00058493,120]
[320689788,1711497074429,-1271.73,0.00058493,120]
[320689789,1711497074439,-500.0,0.00058493,120]
[320689790,1711497074449,-648.81,0.00058493,120]
[320689791,1711497074458,-500.0,0.00058493,120]
[320689792,1711497074468,-500.0,0.00058493,120]
[320689793,1711497074477,-500.0,0.00058493,120]
[320689794,1711497074486,-500.0,0.00058493,21]
[320689795,1711497074496,-500.0,0.00058493,120]
[320689796,1711497074506,-500.0,0.00058493,120]
[320689797,1711497074515,-500.0,0.00058493,120]
[320689798,1711497074524,-500.0,0.00058493,120]
[320689799,1711497074534,-500.01032751,0.00058493,120]
[320689800,1711497074544,-599.66,0.00058493,120]
[320689801,1711497074556,-899.99,0.00058493,120]
[320689802,1711497074566,-500.0,0.00058493,120]
[320689803,1711497074576,-500.0,0.00058493,120]
[320689804,1711497074585,-348.36,0.00058493,120]
[320689805,1711497074594,-500.0,0.00058493,120]
[320689806,1711497074604,-500.0,0.00058493,120]
[320689807,1711497074614,-957.61,0.00058493,120]
[320689808,1711497074623,-500.0,0.00058493,120]
[320689809,1711497074632,-672.52,0.00058493,120]
[320689810,1711497074642,-157.74699849,0.00058495,120]
[320689811,1711497074651,-161.032707,0.00058498,114]
[320689812,1711497074661,-159.0,0.000585,101]
[320689813,1711497074670,-166.4,0.00058537,120]
[320689814,1711497074679,-1127.02834246,0.00058569,120]
[320689815,1711497074689,-500.0,0.0005868,120]
[320689816,1711497074701,-200.0,0.00058708,120]
[320689817,1711497074711,-800.0,0.00058708,120]
[320689818,1711497074720,-500.0,0.00058708,120]
[320689819,1711497074731,-200.0,0.00058708,120]
[320689820,1711497074740,-366.761811,0.0005878,2]
[320689821,1711497074750,-161.032708,0.00058798,100]
[320689822,1711497074759,-158.61,0.000588,30]
[320689823,1711497074769,-1661.0,0.00058888,25]
[320689824,1711497074778,-500.0,0.00058903,120]
[320689825,1711497074788,-500.0,0.00058903,120]
[320689826,1711497074798,-500.0,0.00058903,120]
[320689827,1711497074807,-500.0,0.00058903,120]
[320689828,1711497074817,-500.0,0.00058903,120]
[320689829,1711497074827,-500.0,0.00058903,120]
[320689830,1711497074836,-500.0,0.00058903,120]
[320689831,1711497074846,-500.0,0.00058903,120]
[320689832,1711497074855,-593.16,0.00058903,120]
[320689833,1711497074865,-569.21,0.00058903,120]
[320689834,1711497074875,-500.0,0.00058903,120]
[320689835,1711497074884,-376.0225,0.00058903,65]
[320689836,1711497074894,-854.68,0.00058903,120]
[320689837,1711497074903,-282.88,0.00058903,120]
[320689838,1711497074913,-500.0,0.00058903,120]
[320689839,1711497074923,-1378.8,0.00058903,120]
[320689840,1711497074932,-797.06,0.00058903,120]
[320689841,1711497074941,-794.07,0.00058903,120]
[320689842,1711497074951,-628.57,0.00058903,120]
[320689843,1711497074961,-3177.68,0.00058903,120]
[320689844,1711497074970,-500.0,0.00058903,120]
[320689845,1711497074981,-907.81,0.00058903,120]
[320689846,1711497074991,-500.0,0.00058903,120]
[320689847,1711497075000,-2976.7,0.00058903,120]
[320689848,1711497075009,-580.67,0.00058903,120]
[320689849,1711497075019,-500.0,0.00058903,120]
[320689850,1711497075028,-500.0,0.00058903,120]
[320689851,1711497075037,-151.77755505,0.00058903,78]
[320689852,1711497075047,-500.0,0.00058904,120]
[320689853,1711497075057,-500.0,0.00058904,120]
[320689854,1711497075067,-500.0,0.00058904,120]
[320689855,1711497075076,-500.0,0.00058904,120]
[320689856,1711497075085,-500.0,0.00058904,120]
[320689857,1711497075094,-500.0,0.00058904,120]
[320689858,1711497075104,-532.14827014,0.00058904,120]
[320689859,1711497075114,-500.0,0.00058904,120]
[320689860,1711497075123,-500.0,0.00058904,120]
[320689861,1711497075133,-150.0,0.00058904,120]
[320689862,1711497075143,-500.0,0.00058904,120]
[320689863,1711497075152,-500.0,0.00058904,120]
[320689864,1711497075162,-500.0,0.00058904,120]
[320689865,1711497075291,-500.0,0.00058904,120]
[320689866,1711497075301,-500.0,0.00058904,120]
[320689867,1711497075311,-500.0,0.00058904,120]
[320689868,1711497075322,-500.0,0.00058904,120]
[320689869,1711497075332,-500.0,0.00058904,120]
[320689870,1711497075342,-1692.02,0.00058904,120]
[320689871,1711497075352,-500.0,0.00058904,120]
[320689872,1711497075363,-177.97,0.00058904,120]
[320689873,1711497075373,-500.0,0.00058904,120]
[320689874,1711497075383,-500.0,0.00058904,120]
[320689875,1711497075393,-482.0,0.00058904,120]
[320689876,1711497075403,-454.84,0.00058904,120]
[320689877,1711497075413,-401.48,0.00058904,120]
[320689878,1711497075423,-270.9,0.00058904,120]
[320689879,1711497075434,-500.0,0.00058904,120]
[320689880,1711497075444,-1095.23,0.00058904,120]
[320689881,1711497075455,-500.0,0.00058904,120]
[320689882,1711497075466,-500.0,0.00058904,120]
[320689883,1711497075477,-500.0,0.00058904,120]
[320689884,1711497075487,-171.58,0.00058904,120]
[320689885,1711497075497,-500.0,0.00058904,120]
[320689886,1711497075507,-500.0,0.00058904,120]
[320689887,1711497075517,-555.65,0.00058904,120]
[320689888,1711497075527,-500.0,0.00058904,120]
[320689889,1711497075537,-500.0,0.00058904,120]
[320689890,1711497075547,-500.0,0.00058904,120]
[320689891,1711497075557,-500.0,0.00058904,120]
[320689892,1711497075566,-3526.36,0.00058904,120]
[320689893,1711497075576,-500.0,0.00058904,120]
[320689894,1711497075586,-500.0,0.00058904,120]
[320689895,1711497075596,-768.12,0.00058904,120]
[320689896,1711497075606,-500.0,0.00058904,120]
[320689897,1711497075615,-500.0,0.00058904,120]
[320689898,1711497075625,-1271.73,0.00058904,120]
[320689899,1711497075635,-500.0,0.00058904,120]
[320689900,1711497075645,-648.81,0.00058904,120]
[320689901,1711497075654,-500.0,0.00058904,120]
[320689902,1711497075663,-255.81600165,0.00058904,120]
[320689903,1711497075673,-385.31,0.00058904,120]
[320689904,1711497075683,-500.0,0.00058904,21]
[320689905,1711497075694,-500.0,0.00058904,120]
[320689906,1711497075704,-500.0,0.00058904,120]
[320689907,1711497075713,-500.0,0.00058904,120]
[320689908,1711497075728,-500.0,0.00058904,120]
[320689909,1711497075738,-899.99,0.00058904,120]
[320689910,1711497075748,-500.0,0.00058904,120]
[320689911,1711497075758,-500.0,0.00058904,120]
[320689912,1711497075769,-294.65357376,0.00058904,120]
[320689913,1711497075778,-500.0,0.00058904,120]
[320689914,1711497075789,-957.61,0.00058904,120]
[320689915,1711497075800,-500.0,0.00058904,120]
[320689916,1711497075810,-672.52,0.00058904,120]
[320689917,1711497075819,-1127.02834246,0.0005896,120]
[320689918,1711497075829,-300.0,0.00059,59]
[320689919,1711497075838,-159.0,0.00059,102]
[320689920,1711497075856,-588.0,0.00059176,120]
[320689921,1711497075868,-151.032707,0.00059198,106]
[320689922,1711497075878,-999.6,0.0005923,2]
[320689923,1711497075889,-150.0,0.00059248,120]
[320689924,1711497075899,-9070.25883892,0.00059249,38]
[320689925,1711497075909,-500.0,0.00059314,120]
[320689926,1711497075920,-500.0,0.00059314,120]
[320689927,1711497075929,-500.0,0.00059314,120]
[320689928,1711497075940,-500.0,0.00059314,120]
[320689929,1711497075950,-500.0,0.00059314,120]
[320689930,1711497075960,-500.0,0.00059314,120]
[320689931,1711497075970,-500.0,0.00059314,120]
[320689932,1711497075981,-500.0,0.00059314,120]
[320689933,1711497075990,-593.16,0.00059314,120]
[320689934,1711497076000,-569.21,0.00059314,120]
[320689935,1711497076010,-500.0,0.00059314,120]
[320689936,1711497076020,-854.68,0.00059314,120]
[320689937,1711497076029,-500.0,0.00059314,120]
[320689938,1711497076039,-1378.8,0.00059314,120]
[320689939,1711497076050,-797.06,0.00059314,120]
[320689940,1711497076059,-794.07,0.00059314,120]
[320689941,1711497076068,-3177.68,0.00059314,120]
[320689942,1711497076079,-628.57,0.00059314,120]
[320689943,1711497076088,-500.0,0.00059314,120]
[320689944,1711497076098,-907.81,0.00059314,120]
[320689945,1711497076107,-500.0,0.00059314,120]
[320689946,1711497076117,-2976.7,0.00059314,120]
[320689947,1711497076127,-500.0,0.00059314,120]
[320689948,1711497076136,-580.67,0.00059314,120]
[320689949,1711497076145,-500.0,0.00059314,120]
[320689950,1711497076155,-500.0,0.00059315,120]
[320689951,1711497076165,-500.0,0.00059315,120]
[320689952,1711497076175,-500.0,0.00059315,120]
[320689953,1711497076185,-500.0,0.00059315,120]
[320689954,1711497076195,-500.0,0.00059315,120]
[320689955,1711497076205,-500.0,0.00059315,120]
[320689956,1711497076214,-520.09,0.00059315,120]
[320689957,1711497076223,-526.8170703,0.00059315,120]
[320689958,1711497076233,-150.0,0.00059315,120]
[320689959,1711497076243,-472.79,0.00059315,120]
[320689960,1711497076253,-505.18,0.00059315,120]
[320689961,1711497076263,-500.0,0.00059315,120]
[320689962,1711497076272,-500.0,0.00059315,120]
[320689963,1711497076282,-500.0,0.00059315,120]
[320689964,1711497076291,-500.0,0.00059315,120]
[320689965,1711497076301,-500.0,0.00059315,120]
[320689966,1711497076310,-500.0,0.00059315,120]
[320689967,1711497076320,-1692.02,0.00059315,120]
[320689968,1711497076330,-500.0,0.00059315,120]
[320689969,1711497076340,-500.0,0.00059315,120]
[320689970,1711497076349,-500.0,0.00059315,120]
[320689971,1711497076360,-260.97,0.00059315,120]
[320689972,1711497076370,-1095.23,0.00059315,120]
[320689973,1711497076381,-500.0,0.00059315,120]
[320689974,1711497076391,-500.0,0.00059315,120]
[320689975,1711497076401,-500.0,0.00059315,120]
[320689976,1711497076411,-500.0,0.00059315,120]
[320689977,1711497076422,-500.0,0.00059315,120]
[320689978,1711497076433,-500.0,0.00059315,120]
[320689979,1711497076443,-500.0,0.00059315,120]
[320689980,1711497076452,-500.0,0.00059315,120]
[320689981,1711497076462,-500.0,0.00059315,120]
[320689982,1711497076472,-3526.36,0.00059315,120]
[320689983,1711497076482,-500.0,0.00059315,120]
[320689984,1711497076492,-500.0,0.00059315,120]
[320689985,1711497076502,-768.12,0.00059315,120]
[320689986,1711497076512,-500.0,0.00059315,120]
[320689987,1711497076522,-380.32,0.00059315,120]
[320689988,1711497076532,-1271.73,0.00059315,120]
[320689989,1711497076542,-500.0,0.00059315,120]
[320689990,1711497076552,-648.81,0.00059315,120]
[320689991,1711497076562,-452.01,0.00059315,120]
[320689992,1711497076572,-500.0,0.00059315,21]
[320689993,1711497076582,-500.0,0.00059315,120]
[320689994,1711497076592,-500.0,0.00059315,120]
[320689995,1711497076601,-500.0,0.00059315,120]
[320689996,1711497076611,-500.0,0.00059315,120]
[320689997,1711497076620,-899.99,0.00059315,120]
[320689998,1711497076630,-500.0,0.00059315,120]
[320689999,1711497076640,-463.58,0.00059315,120]
[320690000,1711497076649,-500.0,0.00059315,120]
[320690001,1711497076657,-957.61,0.00059315,120]
[320690002,1711497076667,-500.0,0.00059315,120]
[320690003,1711497076676,-672.52,0.00059315,120]
[320690004,1711497076686,-176.13912235,0.0005935,120]
[320690005,1711497076698,-1127.02834246,0.0005935,120]
[320690006,1711497076712,-673.49818674,0.0005935,2]
[320690007,1711497076721,-291.44206894,0.0005935,60]
[320690008,1711497076731,-217.39847778,0.0005935,2]
[320690009,1711497076742,-422.91975626,0.0005935,120]
[320690010,1711497076750,-150.0,0.00059425,120]
[320690011,1711497076760,-151.032707,0.00059448,117]
[320690012,1711497076769,-23875.996854,0.0005945,30]
[320690013,1711497076779,-23875.996854,0.0005945,30]
[320690014,1711497076792,-23875.996854,0.0005945,30]
[320690015,1711497076801,-23875.996854,0.0005945,30]
[320690016,1711497076810,-23875.996854,0.0005945,30]
[320690017,1711497076821,-23875.996854,0.0005945,30]
[320690018,1711497076830,-23875.996854,0.0005945,30]
[320690019,1711497076839,-589.53053117,0.0005945,30]
[320690020,1711497076862,-2732.36,0.0005945,30]
[320690021,1711497076928,-1134.13449414,0.00058493,120]
[320690022,1711497077943,20000.0,0.00018,2]
[320690023,1711497112473,337.86639598,0.00017999,2]
[320690024,1711497112532,544.82797075,0.00017999,2]
[320690025,1711497114714,165.09636315,0.00017999,2]
[320690026,1711497115397,474.73317686,0.00017999,2]
[320690027,1711497116720,248.34122305,0.00017999,2]
[320690028,1711497117290,155.26582782,0.00017999,2]
[320690029,1711497117321,298.51732397,0.00017999,2]
[320690030,1711497119413,214.69761119,0.00017999,2]
[320690031,1711497122117,155.62703396,0.00017639,2]
[320690032,1711497123062,172.71182598,0.00017999,2]
[320690033,1711497134099,679.71524653,0.00017999,2]
[320690034,1711497140436,1217.93391781,0.00017999,2]
[320690035,1711497169773,11502.94887417,0.00017999,2]
[320690036,1711497171105,306.77009816,0.00017999,2]
[320690037,1711497174144,938.23449572,0.00017999,2]
[320690038,1711497174804,385.57873624,0.00017999,2]
[320690039,1711497175415,755.52017685,0.00017999,2]
[320690040,1711497180659,2112.39351418,0.00017999,2]
[320690041,1711497184147,569.0,0.0001999,15]
[320690042,1711497184636,569.0,0.0001998,15]
[320690043,1711497185127,569.0,0.0001997,15]
[320690044,1711497212241,1249.69130816,0.000179,2]
[320690045,1711497242873,300.0,0.00017999,2]
[320690046,1711497259174,332.49311453,0.000179,2]
[320690047,1711497286216,958.44321169,0.000179,2]
[320690048,1711497304898,150.5,0.0001979,15]
[320690049,1711497307824,150.5,0.0001978,15]
[320690050,1711497310755,150.5,0.0001977,15]
[320690051,1711497341156,179.2,0.00025898,120]
[320690052,1711497346501,24992.39600336,0.000179,2]
[320690053,1711497349390,2419.18767389,0.000179,2]
[320690054,1711497370442,9024.19247434,0.00017999,2]
[320690055,1711497382236,183.80733381,0.000179,2]
[320690056,1711497422165,300.0,0.00017999,2]
[320690057,1711497425029,150.5,0.0001979,15]
[320690058,1711497425515,299.09,0.0001978,15]
[320690059,1711497477497,12253.15792954,0.000179,2]
[320690060,1711497544335,653.0,0.0001979,15]
[320690061,1711497544803,653.0,0.0001978,15]
[320690062,1711497545528,653.0,0.0001977,15]